bitfinex/quotes_ETHUSD_20250725
["timestamp","ask_amount","ask_price","bid_price","bid_amount"]
[1753478262093,1e-08,3723.0,3722.9,0.13]
[1753478262305,1e-08,3723.0,3722.5,3.87]
[1753478262306,3.62382383,3723.0,3722.5,3.87]
[1753478262526,2.6863731,3722.5,3721.4,0.7701]
[1753478262706,2.68664118,3722.2,3721.5,2.68702049]
[1753478263019,2.68664118,3722.2,3721.1,0.20209338]
[1753478263020,0.97138319,3722.1,3721.1,0.20209338]
[1753478263188,0.97138319,3722.1,3720.7,2.68766629]
[1753478263189,0.802,3721.9,3720.7,2.68766629]
[1753478263514,5.39156707,3722.3,3720.8,5.39258904]
[1753478263515,0.802,3721.6,3720.8,5.39258904]
[1753478263719,0.802,3721.6,3720.9,2.68750829]
[1753478263920,0.9378,3721.5,3720.9,2.68750829]
[1753478264213,0.4559,3721.5,3721.1,0.55]
[1753478264414,0.9378,3721.4,3721.0,2.705]
[1753478264625,2.68716959,3721.4,3720.9,0.46555387]
[1753478264812,0.9378,3721.3,3720.9,2.90080304]
[1753478265146,0.802,3721.6,3720.5,0.01322731]
[1753478265147,0.9378,3721.2,3720.5,0.01322731]
[1753478265286,3.48943214,3721.1,3720.5,2.704]
[1753478265486,0.9378,3721.0,3720.5,2.704]
[1753478265710,0.9378,3720.9,3720.5,2.704]
[1753478265904,0.9378,3720.8,3720.5,2.704]
[1753478266320,0.9378,3720.7,3720.5,2.704]
[1753478266490,0.9378,3720.6,3720.5,2.704]
[1753478267120,0.4559,3721.5,3721.4,2.68716074]
[1753478267418,0.4819,3721.7,3721.4,2.703]
[1753478267718,0.9378,3721.7,3721.6,2.68701633]
[1753478267921,0.9378,3721.7,3721.4,2.703]
[1753478267922,1.2491,3722.0,3721.4,2.703]
[1753478268121,1.2491,3722.0,3721.8,2.68687053]
[1753478268424,1.705,3722.0,3721.8,2.68687053]
[1753478268791,0.7672,3722.0,3721.7,5.38992533]
[1753478268994,0.9378,3721.9,3721.8,2.68687194]
[1753478269206,0.9378,3721.9,3721.7,5.38992487]
[1753478269628,0.9378,3721.9,3721.8,2.68687194]
[1753478269830,0.9378,3721.9,3721.8,0.1344]
[1753478270915,0.9378,3721.9,3721.8,2.82127194]
[1753478271220,0.9378,3721.9,3721.8,0.1344]
[1753478271601,0.7878,3722.4,3721.8,0.95084584]
[1753478271800,0.7878,3722.4,3722.2,2.68657619]
[1753478272015,0.7878,3722.4,3722.3,0.1344]
[1753478272220,1.7308,3722.4,3722.3,0.1344]
[1753478272509,1.7308,3722.4,3722.3,2.82091102]
[1753478272711,1.7308,3722.4,3722.3,0.1344]
[1753478273696,1.7308,3722.4,3722.3,2.82091102]
[1753478273931,0.464,3722.4,3722.3,2.82091102]
[1753478274234,0.943,3722.7,3722.3,0.1344]
[1753478274431,0.464,3722.6,3722.1,5.38865456]
[1753478274595,0.464,3722.6,3722.3,2.68644272]
[1753478274596,0.943,3722.6,3722.3,2.68644272]
[1753478274799,0.479,3722.6,3722.5,0.1344]
[1753478275020,0.7878,3722.8,3722.5,0.1344]
[1753478275535,0.464,3722.7,3722.2,2.701]
[1753478275706,0.943,3722.7,3722.2,2.701]
[1753478275910,0.7878,3722.8,3722.6,0.1344]
[1753478276637,0.943,3722.7,3722.6,0.1344]
[1753478280209,1e-08,3723.0,3722.9,2.68607805]
[1753478280420,1e-08,3723.0,3722.9,2.82047805]
[1753478280608,1e-08,3723.0,3722.9,3.29937075]
[1753478280810,1e-08,3723.0,3722.9,5.98417805]
[1753478281010,1e-08,3723.0,3722.9,6.53417805]
[1753478281225,1e-08,3723.0,3722.9,7.45636737]
[1753478282147,1e-08,3723.0,3722.9,6.44066737]
[1753478282327,1e-08,3723.0,3722.9,5.51847805]
[1753478282523,1e-08,3723.0,3722.9,6.53417805]
[1753478283032,1e-08,3723.0,3722.9,6.06847805]
[1753478284063,1e-08,3723.0,3722.9,6.27350183]
[1753478284623,1e-08,3723.0,3722.9,0.33942378]
[1753478284838,1e-08,3723.0,3722.9,3.03642378]
[1753478285023,0.94300001,3723.0,3722.9,2.8314]
[1753478285264,1.15114508,3723.0,3722.9,0.1344]
[1753478285725,1.11757001,3723.0,3722.9,0.1344]
[1753478286976,3.83715098,3723.0,3722.9,0.1344]
[1753478287196,3.83715098,3723.0,3721.5,3.87]
[1753478287197,0.8038,3722.7,3721.5,3.87]
[1753478287467,0.8038,3722.7,3720.3,0.7866]
[1753478287468,0.8038,3722.0,3720.3,0.7866]
[1753478287729,0.17457001,3723.0,3720.3,0.20016176]
[1753478287730,0.8038,3721.7,3720.3,0.20016176]
[1753478287849,0.8038,3720.7,3719.5,0.7866]
[1753478288050,0.8038,3720.7,3719.6,2.695]
[1753478288051,0.97659673,3720.6,3719.6,2.695]
[1753478288251,2.68828045,3719.9,3719.6,2.695]
[1753478288446,4.46874039,3719.8,3719.2,2.695]
[1753478288648,4.46874039,3719.8,3718.3,0.2693]
[1753478288649,0.97660486,3719.7,3718.0,0.7866]
[1753478288847,0.97660486,3719.7,3718.1,3.04262256]
[1753478288848,2.688761,3719.2,3718.1,3.04262256]
[1753478289137,0.97661028,3719.1,3718.1,3.04262256]
[1753478289340,0.49761028,3719.1,3718.1,3.04262256]
[1753478289575,0.8038,3718.9,3718.1,0.34762256]
[1753478289746,0.49761028,3719.1,3716.5,2.69070361]
[1753478289747,0.8038,3717.6,3716.5,2.69070361]
[1753478290076,0.943,3717.5,3716.8,2.69042677]
[1753478290374,0.03362565,3717.4,3716.8,2.694]
[1753478290540,0.03362565,3717.4,3716.9,2.69039973]
[1753478290743,3.52739087,3717.6,3716.1,1.497]
[1753478291059,2.69019692,3717.2,3717.1,0.1344]
[1753478291261,0.03362746,3717.2,3716.1,1.497]
[1753478291466,0.8038,3716.9,3716.8,0.1344]
[1753478291649,1.78043017,3716.9,3716.8,0.1344]
[1753478291972,2.69056266,3716.7,3716.1,1.497]
[1753478292268,0.97663289,3716.6,3716.1,1.497]
[1753478292471,0.8038,3716.9,3716.1,1.497]
[1753478292633,0.464,3716.6,3716.1,1.497]
[1753478292837,0.8038,3716.9,3716.2,3.245]
[1753478293077,0.943,3717.3,3716.8,2.69042112]
[1753478293246,0.8038,3717.5,3716.3,0.53407905]
[1753478293247,0.943,3717.2,3716.7,2.695]
[1753478293457,0.97662836,3717.1,3716.3,0.52077]
[1753478293652,3.63340854,3717.0,3716.2,2.695]
[1753478293839,0.97663017,3716.9,3716.2,2.695]
[1753478294042,0.03363017,3716.9,3716.2,2.695]
[1753478294372,0.943,3716.8,3716.2,2.695]
[1753478294571,0.8038,3717.5,3716.2,2.695]
[1753478294572,1.78043198,3716.7,3716.2,2.695]
[1753478294776,0.943,3716.6,3716.1,1.497]
[1753478294962,2.695,3717.4,3716.1,1.497]
[1753478294963,0.943,3717.2,3716.1,1.6467]
[1753478295275,0.8038,3717.4,3716.9,2.69035402]
[1753478295481,0.8038,3717.4,3716.9,2.69041405]
[1753478295644,0.943,3717.7,3717.2,2.69015791]
[1753478295850,0.8038,3717.9,3716.8,2.695]
[1753478296061,0.943,3717.6,3716.9,2.95985053]
[1753478296260,0.8038,3717.9,3716.8,2.695]
[1753478296261,0.97662474,3717.5,3716.8,2.695]
[1753478296448,0.03362474,3717.5,3716.8,2.695]
[1753478296647,0.943,3717.8,3716.9,2.69035131]
[1753478296847,0.943,3717.8,3716.8,2.695]
[1753478296848,0.943,3717.8,3716.8,5.3854688]
[1753478297070,0.943,3717.8,3716.9,2.69039901]
[1753478297466,0.03362293,3717.7,3716.8,2.695]
[1753478297658,0.464,3717.6,3716.8,2.695]
[1753478297862,0.51262474,3717.5,3716.8,2.695]
[1753478298058,0.51262474,3717.5,3716.1,2.899]
[1753478298059,0.464,3717.4,3716.1,1.6467]
[1753478298269,0.7726,3717.2,3716.2,2.695]
[1753478298475,0.464,3717.1,3716.2,5.82007962]
[1753478298674,0.464,3717.1,3716.2,3.12917]
[1753478298872,0.943,3717.1,3716.2,3.12917]
[1753478299077,0.943,3717.1,3716.3,2.69077634]
[1753478299356,0.943,3717.1,3716.2,3.12917]
[1753478299772,0.03362927,3717.0,3716.2,5.82007579]
[1753478299969,0.93482927,3717.0,3716.2,2.695]
[1753478300162,0.9012,3716.9,3716.1,1.497]
[1753478300367,0.93483108,3716.8,3716.1,1.497]
[1753478300664,0.4653,3716.7,3716.1,1.497]
[1753478300862,3.46286575,3717.2,3716.5,2.69064458]
[1753478300863,0.7726,3717.2,3716.5,2.69064458]
[1753478301178,0.7726,3717.2,3716.1,1.497]
[1753478301179,2.69047561,3716.9,3716.1,1.497]
[1753478301382,0.9012,3717.1,3716.1,1.497]
[1753478301689,0.9012,3717.1,3716.3,2.69079669]
[1753478301893,0.7726,3717.2,3717.0,0.1344]
[1753478302507,0.831,3717.7,3717.0,3.29561188]
[1753478302657,0.831,3717.7,3717.0,1.20426119]
[1753478302884,0.831,3717.7,3717.6,0.1344]
[1753478303583,7.75449356,3725.9,3717.6,0.6053]
[1753478303584,0.831,3718.2,3717.6,0.6053]
[1753478303807,0.831,3718.2,3717.7,2.68977214]
[1753478304019,0.831,3718.2,3717.5,2.68995433]
[1753478304020,0.831,3718.2,3718.1,0.1344]
[1753478304220,1.2669,3718.7,3718.1,0.1344]
[1753478304530,1.2669,3718.7,3718.1,2.82391648]
[1753478304706,1.2669,3718.7,3717.8,0.4709]
[1753478304910,1.2669,3718.7,3718.6,0.1344]
[1753478305238,1.90878112,3718.7,3718.6,0.1344]
[1753478305922,4.5978929,3718.7,3718.6,0.1344]
[1753478306843,1.90878112,3718.7,3718.6,0.1344]
[1753478308205,1.7322,3718.7,3718.6,0.1344]
[1753478308866,0.831,3718.7,3718.6,0.1344]
[1753478309158,0.831,3719.2,3718.6,0.1344]
[1753478309318,0.831,3719.2,3718.6,2.82356368]
[1753478309521,0.831,3719.2,3718.1,0.4709]
[1753478309522,3.51975026,3719.2,3719.1,0.1344]
[1753478309909,0.831,3719.2,3719.1,0.1344]
[1753478310857,1.2669,3719.2,3719.1,0.1344]
[1753478311358,0.831,3719.2,3719.1,0.1344]
[1753478311559,0.4359,3719.6,3719.1,0.1344]
[1753478311706,0.7714,3719.8,3719.1,0.6053]
[1753478312034,0.4359,3720.1,3719.5,0.1344]
[1753478312248,0.4653,3719.9,3718.9,2.68896716]
[1753478312535,0.4653,3719.9,3719.7,0.1344]
[1753478312772,0.9012,3719.8,3719.7,0.1344]
[1753478313045,0.7714,3720.2,3719.7,2.82272984]
[1753478313351,0.7714,3720.2,3719.7,2.82278649]
[1753478313551,0.7714,3720.2,3719.7,2.68838649]
[1753478313759,0.4653,3720.5,3720.1,0.1344]
[1753478314119,0.4653,3720.5,3720.4,0.1344]
[1753478314470,0.7714,3720.6,3720.4,0.1344]
[1753478314919,0.9012,3721.0,3720.4,0.1344]
[1753478315119,1.0819,3721.0,3720.4,0.1344]
[1753478315366,3.76935446,3721.0,3720.8,0.1344]
[1753478315532,2.68752183,3720.9,3720.8,0.1344]
[1753478315729,3.58872183,3720.9,3720.8,0.1344]
[1753478316675,0.9012,3720.9,3720.6,0.1344]
[1753478316823,0.4359,3720.9,3720.6,0.1344]
[1753478317024,0.9058,3721.3,3720.6,0.1344]
[1753478317226,0.7714,3722.3,3720.5,0.55]
[1753478317468,2.68709842,3721.5,3720.5,2.68775323]
[1753478317792,0.4359,3721.7,3720.6,1.05555981]
[1753478317974,0.4359,3721.7,3720.6,3.74329379]
[1753478318261,0.4359,3721.7,3720.8,2.68754645]
[1753478318421,3.122869,3721.7,3720.7,2.68766629]
[1753478318620,0.9012,3722.2,3721.2,2.68730496]
[1753478318849,0.16726,3722.1,3721.4,2.6871488]
[1753478319050,0.16726,3722.1,3721.1,3.15826233]
[1753478319386,3.83695806,3722.2,3721.3,2.68722958]
[1753478319675,0.9012,3722.2,3721.3,2.68722958]
[1753478319826,3.58783922,3722.2,3721.2,2.6872883]
[1753478320224,3.58783922,3722.2,3721.3,2.68723069]
[1753478320464,2.68663283,3722.2,3721.3,2.68723069]
[1753478320760,2.68666263,3722.1,3721.3,2.68723069]
[1753478320933,3.45792503,3722.3,3721.1,0.4709]
[1753478321261,0.7714,3722.3,3721.6,2.68700075]
[1753478321438,0.7714,3722.3,3721.5,2.68707053]
[1753478321670,0.7714,3722.3,3721.6,2.68699208]
[1753478322087,2.68638677,3722.5,3721.6,2.68699208]
[1753478322290,3.15159519,3722.6,3721.8,2.68687126]
[1753478322703,0.4653,3722.6,3721.9,2.68679248]
[1753478322857,0.7584,3722.8,3721.8,0.55]
[1753478323063,1.1943,3722.8,3721.8,0.55]
[1753478323496,1.1943,3722.8,3722.1,2.68664893]
[1753478323766,1.1943,3722.8,3721.8,3.23687158]
[1753478323767,2.68622357,3722.7,3722.0,2.68670927]
[1753478324300,2.68657721,3722.3,3721.5,2.68703502]
[1753478324499,0.93477868,3722.6,3721.7,2.68690672]
[1753478324875,2.68653348,3722.3,3721.6,5.37199778]
[1753478325283,2.6864625,3722.4,3721.7,2.68693995]
[1753478325569,2.68651821,3722.3,3721.6,5.37199018]
[1753478325775,2.68651821,3722.3,3721.7,2.68693975]
[1753478326084,2.68645349,3722.4,3721.7,2.68693975]
[1753478326394,2.68623156,3722.7,3721.6,2.684]
[1753478326567,2.68629286,3722.7,3721.9,2.68675544]
[1753478327197,2.68629286,3722.7,3722.6,0.1344]
[1753478328311,3.62107063,3722.7,3721.3,3.51963213]
[1753478328490,2.68664923,3722.2,3721.4,2.68710853]
[1753478328674,1.60776093,3722.6,3721.3,0.4709]
[1753478328866,2.68651102,3722.3,3722.1,0.1344]
[1753478329083,2.68651102,3722.3,3722.2,0.1344]
[1753478329364,5.14845626,3722.3,3721.3,2.683]
[1753478329560,2.68676468,3722.0,3721.9,0.1344]
[1753478329773,2.72034877,3722.0,3721.9,0.1344]
[1753478330067,2.68696374,3721.7,3720.9,2.68746766]
[1753478330562,0.9562,3722.0,3721.6,0.1344]
[1753478330758,3.51561107,3722.3,3721.6,0.6332]
[1753478330959,0.8291,3722.3,3721.9,0.1344]
[1753478331208,0.8291,3722.3,3721.6,0.4988]
[1753478331209,0.9562,3722.5,3722.2,0.1344]
[1753478331687,2.68659718,3722.2,3721.4,2.68711574]
[1753478332002,2.68659718,3722.2,3721.5,0.61774127]
[1753478332172,0.4876,3722.2,3721.5,0.61774127]
[1753478332372,0.4876,3722.2,3721.5,2.68702797]
[1753478332715,2.68651383,3722.3,3721.5,2.68706565]
[1753478332872,2.6867306,3722.0,3721.3,0.803]
[1753478333065,2.68683317,3721.9,3721.3,0.803]
[1753478333269,2.72047293,3721.8,3721.1,2.68737682]
[1753478333496,2.72047293,3721.8,3720.9,3.4884]
[1753478333497,2.72047293,3721.8,3721.2,0.61757768]
[1753478333797,3.64316931,3721.7,3720.9,6.17591669]
[1753478334016,0.9562,3721.7,3721.0,2.68739926]
[1753478334670,3.64314663,3721.7,3720.9,6.17589564]
[1753478334869,3.64314663,3721.7,3720.9,0.8064]
[1753478334870,2.68701646,3721.6,3720.9,0.8064]
[1753478335097,2.68701646,3721.6,3720.9,3.4874]
[1753478335297,3.67689529,3721.5,3720.5,0.8064]
[1753478335606,3.67689529,3721.5,3720.7,2.68766197]
[1753478335790,0.9562,3721.5,3720.6,2.68773853]
[1753478336099,2.68695228,3721.7,3720.8,2.68759406]
[1753478336305,2.68695228,3721.7,3720.9,0.34689221]
[1753478336468,2.68695228,3721.7,3721.0,2.68740061]
[1753478337181,3.50808725,3721.8,3721.0,2.68740061]
[1753478337498,3.50808097,3721.8,3721.1,2.68733313]
[1753478337703,3.50808097,3721.8,3721.0,2.68743121]
[1753478337902,3.50808097,3721.8,3721.0,3.30950151]
[1753478338905,2.68694413,3721.7,3721.0,3.3020703]
[1753478339277,2.68694413,3721.7,3721.0,2.68]
[1753478339477,0.8212,3721.8,3720.9,0.34689221]
[1753478339677,2.68718142,3721.4,3720.8,2.679]
[1753478339882,0.98979041,3721.3,3720.8,2.679]
[1753478340178,0.98979041,3721.3,3720.2,4.19999999]
[1753478340418,2.68757944,3720.9,3720.1,5.36709956]
[1753478340603,2.68786884,3720.5,3719.7,2.68837411]
[1753478340802,1.81099853,3720.4,3719.7,2.68837411]
[1753478341202,4.4989034,3720.4,3719.7,2.68837411]
[1753478341398,2.6881589,3720.1,3719.3,0.8064]
[1753478341633,2.68805093,3720.2,3719.3,0.8064]
[1753478341957,2.68805093,3720.2,3720.0,0.1344]
[1753478342300,3.64425093,3720.2,3720.0,0.1344]
[1753478342499,0.9562,3720.2,3720.0,0.1344]
[1753478342732,2.68797501,3720.3,3720.0,0.1344]
[1753478342733,2.68809978,3720.1,3720.0,0.1344]
[1753478342948,0.7724,3720.9,3720.2,2.68797296]
[1753478343157,0.9562,3721.4,3721.3,0.1344]
[1753478343158,3.64336074,3721.4,3721.3,0.1344]
[1753478343366,2.68732296,3721.2,3720.8,0.1344]
[1753478343512,3.89416745,3721.3,3720.4,2.68788076]
[1753478343717,3.89416745,3721.3,3720.3,2.678]
[1753478343718,0.98979131,3721.2,3720.3,2.678]
[1753478343960,0.9562,3721.1,3719.7,1.0842]
[1753478344272,2.68752183,3720.9,3720.8,0.1344]
[1753478344633,2.68743778,3721.1,3720.8,0.1344]
[1753478344831,2.68743778,3721.1,3721.0,0.1344]
[1753478345517,0.25098227,3721.2,3721.0,0.1344]
[1753478345757,2.93815073,3721.4,3721.0,0.1344]
[1753478345961,0.25098227,3721.4,3721.1,0.8149]
[1753478346134,2.68703042,3721.6,3721.1,0.8149]
[1753478346328,2.93808649,3721.5,3721.3,0.1344]
[1753478346522,0.25098227,3721.4,3720.8,5.36458595]
[1753478346860,0.25098227,3721.3,3720.8,5.36458595]
[1753478347065,0.25098227,3721.5,3720.8,5.36458595]
[1753478347220,2.68723295,3721.3,3721.2,0.1344]
[1753478347533,3.92800563,3721.3,3721.2,0.1344]
[1753478347727,1.94612891,3721.3,3719.8,0.92642]
[1753478347957,2.68764734,3720.8,3719.9,2.677]
[1753478348162,0.03359582,3720.7,3719.9,2.677]
[1753478348487,0.03359582,3720.7,3719.9,5.36523023]
[1753478348488,2.72126891,3720.7,3719.9,5.36523023]
[1753478348776,0.80789582,3720.7,3719.8,0.16342]
[1753478348945,2.68807386,3720.2,3719.4,2.6885997]
[1753478349146,0.7743,3722.3,3721.2,2.6872345]
[1753478349395,2.68710842,3721.5,3720.6,2.68773853]
[1753478349542,0.9897895,3721.4,3720.5,0.763]
[1753478349877,0.2511509,3721.8,3720.6,1.06203199]
[1753478350079,0.2511509,3721.7,3720.6,0.56323199]
[1753478350379,0.2511509,3721.9,3721.5,2.68708401]
[1753478350585,0.2511509,3721.8,3721.2,0.4988]
[1753478350741,0.2511509,3721.8,3720.8,0.77621827]
[1753478350742,0.2511509,3721.7,3720.9,2.676]
[1753478351076,0.4876,3722.0,3721.2,2.68725267]
[1753478351077,0.7197509,3721.9,3721.2,2.68725267]
[1753478351279,0.2511509,3721.8,3720.9,2.676]
[1753478351581,2.68688786,3721.8,3721.0,2.68744154]
[1753478351785,0.03358589,3721.8,3720.9,3.14073532]
[1753478351986,0.4686,3721.9,3721.0,2.68743372]
[1753478352170,0.9562,3721.7,3721.0,2.68744271]
[1753478352362,0.9897868,3721.7,3721.0,2.68744271]
[1753478352557,0.9897868,3721.7,3720.9,3.14073532]
[1753478352558,0.7673,3721.6,3720.8,0.763]
[1753478352763,2.6872154,3721.4,3720.6,5.3627081]
[1753478353555,2.68724378,3721.3,3720.6,5.3627081]
[1753478353750,0.9562,3721.2,3719.9,0.7583]
[1753478353953,1.75709221,3721.1,3719.8,2.68830543]
[1753478354182,2.68776189,3720.6,3719.9,0.53633054]
[1753478354484,2.72141895,3720.5,3719.9,0.53633054]
[1753478354657,0.03359763,3720.5,3719.9,0.53633054]
[1753478355059,3.45534211,3720.2,3719.4,2.68860568]
[1753478355259,0.7673,3720.2,3719.6,2.68843719]
[1753478355456,0.7673,3720.2,3719.3,5.56712765]
[1753478355457,2.68817204,3720.0,3719.3,0.20451666]
[1753478355673,2.68844757,3719.7,3719.0,2.674]
[1753478355994,0.4686,3720.0,3719.1,0.66200485]
[1753478356360,3.15680026,3720.0,3719.1,0.66200485]
[1753478356559,2.68839902,3719.7,3719.1,0.66200485]
[1753478356759,2.68839902,3719.7,3718.9,0.2006589]
[1753478356760,0.4686,3719.6,3718.9,0.2006589]
[1753478357054,3.15708327,3719.6,3718.8,0.7583]
[1753478357295,2.68863066,3719.4,3718.8,0.19831909]
[1753478357590,0.4686,3719.6,3718.7,2.674]
[1753478357776,0.4686,3719.6,3718.7,5.36310542]
[1753478357777,2.68859158,3719.5,3718.7,5.36310542]
[1753478357989,2.68859158,3719.5,3718.8,1.19243424]
[1753478358201,2.72222279,3719.4,3718.8,1.19243424]
[1753478358414,0.98980757,3719.4,3718.7,5.36309918]
[1753478358722,0.9562,3719.4,3718.8,2.68899258]
[1753478358872,0.9562,3719.9,3719.0,2.68886781]
[1753478359073,0.9562,3719.9,3719.3,0.1344]
[1753478359413,2.68836301,3719.8,3718.8,2.68903454]
[1753478359610,0.9562,3719.9,3719.7,0.1344]
[1753478359807,3.64451657,3719.8,3719.7,0.1344]
[1753478360180,3.64451657,3719.8,3718.8,1.17113776]
[1753478360181,2.68847334,3719.6,3719.5,0.1344]
[1753478360376,3.64379472,3719.7,3719.5,0.1344]
[1753478360707,0.7673,3720.2,3719.5,0.1344]
[1753478360907,2.68809978,3720.1,3719.5,0.1344]
[1753478361114,0.7673,3720.6,3720.1,0.1344]
[1753478361411,4.41043929,3720.6,3720.5,0.1344]
[1753478362802,5.38754849,3720.6,3720.5,0.1344]
[1753478363009,2.8342092,3720.6,3720.0,0.1344]
[1753478363214,3.66199763,3720.5,3719.5,4.19999999]
[1753478363525,2.68802752,3720.2,3720.1,0.1344]
[1753478363922,3.64342752,3720.2,3720.1,0.1344]
[1753478365544,3.14342752,3720.2,3720.1,0.1344]
[1753478365841,2.68802752,3720.2,3720.1,0.1344]
[1753478366244,0.5,3720.5,3720.1,0.1344]
[1753478366245,0.7673,3720.6,3720.1,0.1344]
[1753478366444,2.68783036,3720.5,3720.1,0.1344]
[1753478366610,2.68772542,3720.7,3720.1,0.4848]
[1753478366811,2.68776445,3720.6,3720.4,0.1344]
[1753478367144,3.96192217,3721.1,3720.6,0.1344]
[1753478367330,2.6876016,3720.8,3720.5,0.1344]
[1753478367649,2.6876016,3720.8,3720.7,0.1344]
[1753478368145,1.7299,3721.1,3720.7,0.1344]
[1753478368355,2.68742935,3721.1,3720.7,0.1344]
[1753478368515,0.03359312,3721.0,3720.2,4.19999999]
[1753478368848,0.7745,3721.5,3720.2,4.19999999]
[1753478368849,3.64277738,3721.1,3721.0,0.1344]
[1753478369051,3.64277738,3721.1,3720.4,2.68785842]
[1753478369052,2.6874506,3721.0,3720.4,2.68785842]
[1753478369428,2.6874506,3721.0,3720.9,0.1344]
[1753478370368,0.9554,3721.1,3720.9,0.1344]
[1753478370369,2.68739519,3721.1,3720.9,0.1344]
[1753478371254,1.7299,3721.5,3720.9,0.1344]
[1753478371549,2.68744961,3721.0,3720.4,3.17266729]
[1753478371779,2.68748727,3721.0,3720.4,0.4848]
[1753478371932,2.68748727,3721.0,3720.9,0.1344]
[1753478373121,2.687754,3720.6,3720.1,2.671]
[1753478373447,2.68737738,3721.1,3720.7,0.1344]
[1753478373645,2.68728914,3721.3,3720.8,0.4848]
[1753478373849,2.68738138,3721.1,3720.5,2.70103004]
[1753478374067,2.68738138,3721.1,3721.0,0.1344]
[1753478374217,0.1344,3721.6,3721.0,0.1344]
[1753478374412,0.8331,3721.8,3721.0,0.1344]
[1753478374413,4.4575,3721.8,3721.0,0.1344]
[1753478374615,2.68713754,3721.5,3720.9,0.4848]
[1753478374851,2.68713754,3721.5,3720.9,1.27468826]
[1753478375061,2.68713754,3721.5,3721.4,0.1344]
[1753478377144,3.64253754,3721.5,3721.4,0.1344]
[1753478377743,3.64253754,3721.5,3720.3,0.826]
[1753478377744,2.68716074,3721.4,3720.3,0.826]
[1753478377960,2.68757067,3720.9,3720.3,0.826]
[1753478378137,2.68760754,3720.8,3720.3,0.826]
[1753478378759,0.9554,3721.3,3720.3,0.826]
[1753478378760,2.668,3721.2,3720.3,0.826]
[1753478378963,2.6878436,3720.5,3719.9,0.7968]
[1753478379129,2.72135979,3720.6,3720.0,2.68815903]
[1753478379328,2.68776306,3720.6,3720.1,0.63587499]
[1753478379547,2.68776306,3720.6,3720.1,1.12067499]
[1753478379927,2.68781949,3720.5,3720.1,1.12067499]
[1753478380166,2.68776744,3720.6,3720.1,1.12067499]
[1753478380867,2.68796376,3720.3,3719.9,1.00259083]
[1753478381021,0.03359763,3720.5,3719.9,1.00259083]
[1753478381223,2.68716074,3721.4,3720.7,0.7948]
[1753478381422,2.68711015,3721.5,3720.8,5.35452758]
[1753478381668,2.68711015,3721.5,3720.8,6.28803614]
[1753478381873,2.68711015,3721.5,3720.9,2.68752153]
[1753478382231,0.9554,3721.9,3720.9,0.4848]
[1753478382430,0.4554,3721.9,3720.9,0.49802227]
[1753478382874,0.4554,3721.9,3721.0,2.68744961]
[1753478382875,0.9554,3721.9,3721.0,2.68744961]
[1753478383174,2.68698762,3721.7,3721.0,3.37778457]
[1753478383580,0.7683,3722.7,3721.3,0.7948]
[1753478383730,2.68629481,3722.6,3722.1,0.7948]
[1753478383933,2.68630326,3722.6,3722.1,1.89643892]
[1753478384176,2.6861502,3722.8,3722.1,1.2796]
[1753478384576,0.51830001,3723.1,3722.4,2.68637695]
[1753478384786,0.15065405,3723.3,3722.2,2.67920243]
[1753478385080,2.68581373,3723.3,3722.5,2.68635145]
[1753478385234,3.33643875,3723.4,3722.5,0.01319484]
[1753478385435,0.5,3723.4,3722.6,0.3184427]
[1753478385830,4.0554,3723.5,3722.6,0.3184427]
[1753478385831,6.7410503,3723.5,3722.6,3.00473595]
[1753478386035,3.6,3723.5,3722.8,0.55]
[1753478386256,3.6,3723.5,3722.9,5.36524312]
[1753478386438,3.6,3723.5,3723.1,2.68590511]
[1753478386637,3.6,3723.5,3723.1,2.69909203]
[1753478386873,3.6,3723.5,3723.2,0.4848]
[1753478387382,3.6,3723.5,3723.0,0.61715166]
[1753478387876,3.6,3723.5,3723.4,0.1344]
[1753478388279,6.28564522,3723.5,3723.4,0.1344]
[1753478388847,7.24104522,3723.5,3723.4,2.7994]
[1753478389174,7.24104522,3723.5,3723.4,2.664]
[1753478389536,2.68633999,3722.6,3722.2,0.8022]
[1753478389751,2.68623545,3722.7,3722.3,2.664]
[1753478389961,2.68623545,3722.7,3722.5,0.1344]
[1753478390179,3.6610732,3722.6,3722.5,0.1344]
[1753478390335,3.6610732,3722.6,3722.5,2.7984]
[1753478390537,3.62749452,3722.6,3722.5,2.7984]
[1753478390895,3.62749452,3722.6,3722.5,0.1344]
[1753478391247,3.62749452,3722.6,3719.5,2.6885026]
[1753478391248,2.40692262,3722.6,3721.3,3.50760739]
[1753478391567,0.97477958,3722.5,3721.3,0.8204]
[1753478391746,0.97477958,3722.5,3721.8,0.1344]
[1753478391747,2.68683006,3721.9,3721.8,0.1344]
[1753478391944,3.14849975,3721.9,3721.8,0.1344]
[1753478392649,2.68735085,3721.2,3720.5,0.8204]
[1753478392970,2.68735085,3721.2,3720.9,0.1344]
[1753478392971,0.4795,3721.1,3720.9,0.1344]
[1753478393172,0.4795,3721.1,3720.5,0.8204]
[1753478393173,2.68737072,3721.2,3720.5,0.8204]
[1753478393378,2.68730517,3721.2,3721.1,0.1344]
[1753478393742,3.62850517,3721.2,3721.1,0.1344]
[1753478393946,3.62850517,3721.2,3721.0,2.663]
[1753478393947,2.68737738,3721.1,3721.0,2.663]
[1753478394142,2.68733556,3721.2,3721.0,2.663]
[1753478394455,2.68737738,3721.1,3721.0,0.1344]
[1753478394662,2.68737738,3721.1,3721.0,2.7964]
[1753478394870,3.62857738,3721.1,3721.0,0.1344]
[1753478395177,2.68743191,3721.1,3720.8,0.1344]
[1753478395368,2.68745797,3721.0,3720.8,0.1344]
[1753478395768,2.68745797,3721.0,3720.8,2.7964]
[1753478396142,2.68723295,3721.3,3720.8,2.7964]
[1753478396345,0.1344,3721.4,3720.8,2.7964]
[1753478396566,2.68749672,3721.0,3720.9,0.24404523]
[1753478396777,2.68738487,3721.1,3720.8,2.7964]
[1753478397074,2.68730517,3721.2,3720.9,0.24407358]
[1753478397261,3.16680517,3721.2,3720.8,2.7964]
[1753478397582,2.68744599,3721.1,3720.9,0.24408598]
[1753478397785,2.68744599,3721.1,3720.8,2.7964]